[Event "Bangabandhu Premier Div League 2022"]
[Site "Dhaka"]
[Date "2022.12.06"]
[Round "7.12"]
[White "Idani, Pouya"]
[Black "Chowdhury, Sohel"]
[Result "1-0"]
[ECO "E07"]
[WhiteElo "2631"]
[BlackElo "2004"]
[Annotator "TA"]
[PlyCount "83"]
[EventDate "2022.11.30"]
[EventType "team-tourn"]
[EventCountry "BAN"]
[SourceTitle "playchess.com"]
[Source "ChessBase"]
[SourceQuality "1"]
[TimeControl "40/5400+30:1800+30"]

{[%evp 14,83,22,-1,28,11,26,19,23,0,41,17,52,41,83,87,97,101,107,97,92,101,110,115,103,117,107,114,161,160,140,170,155,152,220,214,224,191,209,206,226,218,259,234,433,433,520,404,517,503,643,628,590,532,512,480,786,691,652,580,885,883,852,856,5398,5398,5384,5193,5114,1370,5077,4960]} 1. d4 {[%emt 0:00:09]} d5 {[%emt 0:00:56]} 2. c4 {[%emt 0:00:05]} c6 {[%emt 0:00:27]} 3. Nf3 {[%emt 0:00:05]} Nf6 {[%emt 0:00:31]} 4. Nc3 {[%emt 0:00:05]} e6 {[%emt 0:02:02]} 5. g3 {[%emt 0:00:05]} Nbd7 {[%emt 0:03:00]} 6. Bg2 {[%emt 0:00:06]} Be7 {[%emt 0:07:27]} 7. O-O {[%emt 0:00:08]} O-O {[%emt 0:00:26]} 8. Nd2 {[%emt 0:00:22] 8.Qd3 is the modern continuation.} Re8 {[%emt 0:03:54][%cal Ob7b5] E07: Closed Catalan: Main Line (5 Nf3 0-0 6 0-0 Nbd7).} (8... b5 $5) 9. e4 {[%emt 0:00:07]} dxe4 {[%emt 0:00:54]} 10. Ndxe4 {[%emt 0:00:06]} Nxe4 {[%emt 0:08:14] The position is equal.} 11. Nxe4 {[%emt 0:01:51]} Nf6 {[%emt 0:04:40]} (11... f5 $5 {[%cal Rf5e4]} 12. Nc3 e5 $11) 12. Nc3 {[%emt 0:00:59]} h6 {[%emt 0:06:53][%cal Oe6e5]} 13. Re1 {[%emt 0:01:44] [#]} a6 $146 {[%emt 0:05:43]} ({Predecessor:} 13... Qd7 14. Be3 b6 15. d5 cxd5 16. cxd5 Bb7 17. dxe6 Qxd1 18. exf7+ Kxf7 19. Raxd1 Bxg2 20. Kxg2 {1-0 (43) Ramirez Alvarez,R-Piris,J Asturias 1992}) 14. Bf4 {[%emt 0:02:16]} Nh7 {[%emt 0:07:33]} 15. d5 {[%emt 0:09:26] White is much more active.} cxd5 {[%emt 0:02:22]} 16. cxd5 {[%emt 0:00:12]} Bg5 {[%emt 0:00:40]} 17. Bxg5 {[%emt 0:04:32]} Nxg5 {[%emt 0:02:13]} 18. h4 {[%emt 0:00:04]} Nh7 {[%emt 0:01:08]} 19. dxe6 {[%emt 0:00:51]} Bxe6 {[%emt 0:01:51]} 20. Bxb7 {[%emt 0:00:10][%cal Bg2b7,Bb7a6,Ba6f1][%mdl 32]} Rb8 {[%emt 0:02:55]} (20... Qxd1 $16 21. Rexd1 (21. Raxd1 Rab8 $16) 21... Ra7) 21. Qxd8 $18 {[%emt 0:01:01]} ({Resist} 21. Bxa6 Qa5 $16) 21... Rexd8 {[%emt 0:00:05]} 22. Bxa6 {[%emt 0:00:06]} Rxb2 {[%emt 0:00:48] [#]} 23. a4 $1 {[%emt 0:00:04][%cal Ba2a4,Ba4a5,Ba5a6][%mdl 32]} Nf6 {[%emt 0:01:29]} (23... Ra8 $16) 24. a5 {[%emt 0:01:49]} Rc2 {[%emt 0:02:20]} 25. Nd1 {[%emt 0:11:17]} Rb8 {[%emt 0:13:12]} 26. Bf1 {[%emt 0:01:59]} Ra8 {[%emt 0:03:39]} 27. Ne3 {[%emt 0:02:21]} Rd2 {[%emt 0:04:22]} 28. a6 {[%emt 0:01:02]} Ne4 $2 {[%emt 0:03:44] [#]} (28... Rb2 {was worth a try.} 29. Rec1 Ra7) 29. Bg2 {[%emt 0:12:50]} f5 {[%emt 0:06:14]} 30. Ra5 {[%emt 0:00:40]} g6 {[%emt 0:02:12]} 31. h5 {[%emt 0:00:06][%cal Bh4h5,Bh5g6][%mdl 32] White is clearly winning.} Kg7 {[%emt 0:02:04]} 32. hxg6 {[%emt 0:00:07]} Ra7 {[%emt 0:01:54] Inhibits g4.} 33. Nxf5+ {[%emt 0:04:13]} Bxf5 {[%emt 0:00:02]} 34. Rxf5 {[%emt 0:00:07]} Nd6 {[%emt 0:00:54]} (34... Ng5 $142 35. f4 Kxg6) 35. Ra5 {[%emt 0:00:11]} Kxg6 {[%emt 0:01:12]} 36. Re6+ {[%emt 0:00:11]} Kg7 {[%emt 0:00:00]} 37. Bd5 {[%emt 0:00:10]} Nf7 {[%emt 0:00:18]} 38. Rb6 {[%emt 0:00:19]} Ng5 {[%emt 0:00:31]} 39. Rb7+ {[%emt 0:00:17]} Rxb7 {[%emt 0:00:34]} 40. axb7 {[%emt 0:00:10]} Rb2 {[%emt 0:00:09] Against b8Q} 41. Ra8 {[%emt 0:30:04]} Nh3+ {[%emt 0:30:27]} 42. Kg2 {[%emt 0:00:10] White took control after the opening.   Weighted Error Value: White=0.22 (precise) /Black=0.46} 1-0

[Event "Bangabandhu Premier Div League 2022"]
[Site "Dhaka"]
[Date "2022.12.07"]
[Round "8.1"]
[White "Mohammed Abdul, Malek"]
[Black "Anata, Choudhury"]
[Result "1/2-1/2"]
[ECO "A33"]
[WhiteElo "2152"]
[BlackElo "2176"]
[Annotator "TA"]
[PlyCount "62"]
[EventDate "2022.11.30"]
[EventType "team-tourn"]
[EventCountry "BAN"]
[SourceTitle "playchess.com"]
[Source "ChessBase"]
[SourceQuality "1"]
[TimeControl "40/5400+30:1800+30"]

{[%evp 17,62,29,40,0,0,0,0,20,14,5,6,11,0,0,10,10,20,0,0,0,0,0,0,0,25,29,23,29,22,7,32,0,0,0,0,0,22,16,31,8,7,9,9,7,9,0,0]} 1. d4 {[%emt 0:00:02]} Nf6 {[%emt 0:00:13]} 2. Nf3 {[%emt 0:00:05][%cal Bg1f3,Bf3d4,Bd4b3][%mdl 32]} e6 {[%emt 0:00:07]} 3. g3 {[%emt 0:01:05]} c5 {[%emt 0:00:49]} 4. Bg2 {[%emt 0:00:14]} Nc6 {[%emt 0:00:11]} 5. O-O {[%emt 0:00:17]} cxd4 {[%emt 0:00:27]} 6. Nxd4 {[%emt 0:00:03]} Bc5 {[%emt 0:00:20]} 7. Nb3 {[%emt 0:00:11]} Be7 {[%emt 0:00:12]} 8. c4 {[%emt 0:00:12]} O-O {[%emt 0:00:20]} 9. Nc3 {[%emt 0:00:49]} d6 {[%emt 0:01:02]} 10. Bg5 {[%emt 0:06:22] A33: Symmetrical English: 2 Nf3 Nf6 3 d4 cxd4 4 Nxd4 e6 5 Nc3 Nc6.} Ne5 {[%emt 1:31:49]} 11. Qd4 {[%emt 0:01:38]} h6 {[%emt 0:00:00]} 12. Bf4 {[%emt 0:00:29]} Nc6 {[%emt 0:00:00]} 13. Qd2 {[%emt 0:01:29] [#]} e5 $146 {[%emt 0:00:00]} ({Predecessor:} 13... g5 14. Be3 Ne5 15. Qd4 Nc6 16. Qd2 Ne5 17. Qd4 Nc6 18. Qd2 {½-½ (16) Maze,S (2578)-Safarli,E (2662) Skopje 2019}) 14. Be3 {[%emt 0:00:44]} Be6 {[%emt 0:00:00]} 15. Nd5 {[%emt 0:00:37]} Ng4 {[%emt 0:00:00]} 16. Rac1 {[%emt 0:02:51]} Nxe3 {[%emt 0:00:00]} (16... Rc8 {seems wilder.} 17. Rfd1 Re8 18. Qd3 Nxe3 19. Nxe3 Nb4) 17. Nxe7+ {[%emt 0:00:56]} Qxe7 {[%emt 0:00:00]} 18. Qxe3 {[%emt 0:00:22]} Rfd8 {[%emt 0:00:00]} 19. Rfd1 {[%emt 0:00:55][%cal Bf1d1,Bd1d3,Bd3d6][%mdl 32]} Rac8 {[%emt 0:00:00]} 20. Bd5 {[%emt 0:13:12]} a6 {[%emt 0:00:00]} 21. a3 {[%emt 0:08:21]} Rc7 {[%emt 0:00:00]} 22. Qb6 {[%emt 0:01:36]} Rdc8 {[%emt 0:00:00]} 23. e4 {[%emt 0:01:26]} Qf6 {[%emt 0:00:00]} 24. Rd3 {[%emt 0:04:59]} Bh3 {[%emt 0:00:00]} 25. Rcd1 {[%emt 0:04:31]} Qe7 {[%emt 0:00:00]} 26. Qe3 {[%emt 0:06:05]} Bg4 {[%emt 0:00:00]} 27. f3 {[%emt 0:00:09]} Be6 {[%emt 0:00:00]} 28. Bxe6 {[%emt 0:08:20]} Qxe6 {[%emt 0:00:00] The position is equal.} 29. Rxd6 {[%emt 0:00:09]} Qxc4 {[%emt 0:00:00]} 30. Rc1 {[%emt 0:00:16]} Qa4 {[%emt 0:00:00]} ({Don't take} 30... Qb5 31. Rd5 Qa4 32. Nc5 $16) 31. Kg2 {[%emt 0:07:28]} Na5 {[%emt 0:00:28] An even fight not without its subleties.   Weighted Error Value: White=0.06 (flawless) /Black=0.05 (flawless)} 1/2-1/2

[Event "Bangabandhu Premier Div League 2022"]
[Site "Dhaka"]
[Date "2022.12.07"]
[Round "8.1"]
[White "Haque, Rezaul"]
[Black "Nayem, Haque"]
[Result "1/2-1/2"]
[ECO "A06"]
[WhiteElo "1949"]
[BlackElo "2189"]
[Annotator "TA"]
[PlyCount "85"]
[EventDate "2022.12.01"]
[EventCountry "BAN"]
[SourceTitle "playchess.com"]
[Source "ChessBase"]
[SourceQuality "1"]
[TimeControl "40/5400+30:1800+30"]

{[%evp 9,85,-16,-10,-31,-37,-31,-30,-35,0,-27,-20,-25,-19,-20,0,0,0,0,0,-26,-6,-13,-15,-20,-15,-31,-24,-57,-19,-33,0,0,0,0,14,0,0,0,0,0,0,0,0,0,0,0,0,0,0,0,0,0,0,0,0,0,6,0,0,0,0,0,0,0,0,0,6,6,10,13,14,14,14,15,15,0,16,0]} 1. Nf3 {[%emt 0:00:04]} d5 {[%emt 0:00:06]} 2. d3 {[%emt 0:00:14]} Nf6 {[%emt 0:01:12]} 3. Bg5 {[%emt 0:00:07]} e6 {[%emt 0:00:29]} 4. Nbd2 {[%emt 0:00:27]} Be7 {[%emt 1:30:43]} 5. c3 {[%emt 1:32:08]} c5 {[%emt 0:00:00]} 6. e4 {[%emt 0:00:30] A06: Réti Opening: 1 Nf3 d5.} Nc6 {[%emt 0:01:00] [#]} 7. a4 $146 {[%emt 0:00:30]} ({Predecessor:} 7. Be2 O-O 8. O-O h6 9. Bh4 b6 10. e5 Nd7 11. Bxe7 Qxe7 12. d4 a5 13. Bd3 Ba6 14. Bxa6 Rxa6 15. Qe2 Ra7 {0-1 (50) Haque,R (2121)-Hossain,E (2443) Dhaka 2016}) 7... O-O {[%emt 0:00:00]} 8. Be2 {[%emt 0:00:30] Black has an edge.} Qb6 {[%emt 0:00:00]} 9. Qc2 {[%emt 0:00:30]} h6 {[%emt 0:00:00]} 10. Bh4 {[%emt 0:00:30]} Qc7 {[%emt 0:02:00]} 11. O-O {[%emt 0:00:30]} b6 {[%emt 0:00:00]} 12. Rfe1 {[%emt 0:00:00]} Bb7 {[%emt 0:00:00]} 13. Bf1 {[%emt 0:01:00]} Rac8 {[%emt 0:00:00]} 14. Rac1 {[%emt 0:00:30]} Rfe8 {[%emt 0:02:00]} 15. Qb1 {[%emt 0:00:30]} Qd8 {[%emt 0:00:30]} 16. e5 {[%emt 0:00:00] Against g5} Nd7 {[%emt 0:00:30]} 17. Bxe7 {[%emt 0:00:00]} Qxe7 {[%emt 0:00:30]} 18. b3 {[%emt 0:01:30]} a6 {[%emt 0:00:30]} 19. Qb2 {[%emt 0:00:30]} Rf8 {[%emt 0:00:30]} 20. d4 {[%emt 0:00:30] The position is equal.} cxd4 {[%emt 0:00:30]} 21. cxd4 {[%emt 0:00:30]} Nb4 {[%emt 0:00:30]} 22. Rxc8 {[%emt 0:00:00]} Rxc8 {[%emt 0:00:30]} 23. Rc1 {[%emt 0:01:00]} Rxc1 {[%emt 0:00:00]} 24. Qxc1 {[%emt 0:00:30]} Nb8 {[%emt 0:01:00]} 25. Nb1 {[%emt 0:00:00]} N8c6 {[%emt 0:00:00]} 26. Na3 {[%emt 0:01:00]} Na2 {[%emt 0:00:00]} 27. Qb2 {[%emt 0:00:00]} Ncb4 {[%emt 0:01:30]} 28. Nc2 {[%emt 0:01:00]} Qc7 {[%emt 0:00:30]} 29. Nxb4 {[%emt 0:00:00]} Nxb4 {[%emt 0:00:00]} 30. Ne1 {[%emt 0:00:00]} a5 {[%emt 0:00:00]} 31. Bb5 {[%emt 0:01:30]} Bc8 {[%emt 0:00:00]} 32. Qd2 {[%emt 0:00:00]} Bd7 {[%emt 0:02:00]} 33. Bxd7 {[%emt 0:00:00]} Qxd7 $11 {[%emt 0:00:30][%mdl 4096] Endgame KQN-KQN} 34. Nc2 {[%emt 0:01:30]} Qe7 {[%emt 0:00:00]} 35. Nxb4 {[%emt 0:00:00]} Qxb4 {[%emt 0:00:00]} 36. Qxb4 {[%emt 0:00:00]} axb4 {[%emt 0:00:00] KP-KP} 37. f4 {[%emt 0:01:30]} g6 {[%emt 0:00:00]} 38. Kf2 Kg7 {[%emt 0:02:30]} 39. Kf3 {[%emt 0:01:00]} Kh7 {[%emt 0:00:30]} 40. Kg4 {[%emt 0:00:30]} Kg7 {[%emt 0:00:00]} 41. Kh4 Kh7 {[%emt 0:31:00]} 42. Kg4 {[%emt 0:31:00]} Kg7 {[%emt 0:00:30]} 43. Kh4 {[%emt 0:00:30] Weighted Error Value: White=0.06 (flawless) /Black=0.05 (flawless)} 1/2-1/2

[Event "Bangabandhu Premier Div League 2022"]
[Site "Dhaka"]
[Date "2022.12.07"]
[Round "8.2"]
[White "Ghosh, Diptayan"]
[Black "Rahman, Siddiqur"]
[Result "1-0"]
[ECO "D15"]
[WhiteElo "2544"]
[BlackElo "1970"]
[Annotator "TA"]
[PlyCount "77"]
[EventDate "2022.12.01"]
[EventCountry "BAN"]
[SourceTitle "playchess.com"]
[Source "ChessBase"]
[SourceQuality "1"]
[TimeControl "40/5400+30:1800+30"]

{[%evp 12,77,50,43,62,56,58,47,52,55,62,63,70,42,75,26,81,33,102,110,114,110,120,127,122,114,124,121,109,116,116,122,172,165,202,175,273,279,267,271,279,247,451,441,477,489,480,478,569,560,528,510,701,696,683,641,435,839,1068,1046,5373,2075,29985,29986,29991,5597,5122,2287]} 1. d4 {[%emt 0:06:13]} d5 {[%emt 0:00:11]} 2. c4 {[%emt 0:00:09]} c6 {[%emt 0:00:15]} 3. Nc3 {[%emt 0:00:06]} Nf6 {[%emt 0:00:14]} 4. e3 {[%emt 0:00:05]} e6 {[%emt 0:00:39]} 5. Nf3 {[%emt 0:00:04]} a6 {[%emt 0:01:04]} 6. b3 {[%emt 0:00:23]} b5 {[%emt 0:01:21]} 7. Bd3 {[%emt 0:00:52]} Bb4 {[%emt 0:04:05] D15: Slav Defence: 4 Nc3 a6 and gambit lines after 4 Nc3 dxc4.} 8. Bd2 {[%emt 1:26:38]} O-O {[%emt 0:01:00]} 9. O-O {[%emt 0:00:30][%cal Oc3d5] [#]} Ba5 $146 {[%emt 0:05:48] White is slightly better.} ({Predecessor:} 9... Nbd7 10. Qc2 Bd6 11. Rfe1 bxc4 12. bxc4 c5 13. cxd5 exd5 14. dxc5 Nxc5 15. Be2 Bg4 {1-0 (108) Molina,R (2434)-Coto Mederos,M (2348) Chess.com INT 2021}) 10. Qc2 {[%emt 0:00:00]} Bb7 {[%emt 1:20:53]} 11. c5 {[%emt 0:01:00]} Nbd7 {[%emt 0:00:30]} 12. Ne2 {[%emt 0:00:00]} Bc7 {[%emt 0:00:00]} 13. Bc3 {[%emt 0:00:00]} (13. a4 $16) 13... h6 {[%emt 0:00:00]} (13... a5 $1 $11) 14. h3 {[%emt 0:01:30]} ({White should try} 14. a4 $1 $16) 14... Qb8 {[%emt 0:01:30] [#]} (14... a5 $14) 15. a4 $1 $16 {[%emt 0:00:30]} Re8 {[%emt 0:00:00]} 16. b4 {[%emt 0:00:30]} e5 {[%emt 0:00:00]} 17. dxe5 {[%emt 0:00:00]} Nxe5 {[%emt 0:00:00]} 18. Nxe5 {[%emt 0:00:00]} Bxe5 {[%emt 0:00:00]} 19. Bxe5 {[%emt 0:00:00]} Qxe5 {[%emt 0:00:00]} 20. Nd4 {[%emt 0:00:00]} Ne4 {[%emt 0:00:00]} 21. Ra3 {[%emt 0:02:30]} (21. Rfd1 {simplifies} Rab8 22. axb5 axb5 23. Bxe4 Qxe4 24. Qxe4 Rxe4 25. Ra7) 21... Rac8 {[%emt 0:03:30] [#]} (21... Rab8 $16 22. axb5 axb5) 22. axb5 $1 $18 {[%emt 0:00:00]} cxb5 {[%emt 0:00:30]} 23. Rfa1 {[%emt 0:00:00]} Rc7 {[%emt 0:00:00]} (23... g6 $142 24. Bxe4 dxe4) 24. Rxa6 {[%emt 0:00:00]} Bxa6 {[%emt 0:00:00]} 25. Rxa6 {[%emt 0:00:00]} Rcc8 {[%emt 0:00:00]} 26. Qa2 {[%emt 0:02:30]} (26. Bxb5 $6 Ra8 27. c6 Qd6 $18) 26... g5 $2 {[%emt 0:00:00]} (26... h5 27. Ra7 (27. Nxb5 Nc3 $16) 27... Red8 28. Bxb5 Rc7) 27. Bxb5 {[%emt 0:00:00]} (27. Nxb5 Nc3 28. Nxc3 Qxc3 $18) 27... Nc3 {[%emt 0:00:00]} 28. Qa3 {[%emt 0:00:00]} Nxb5 {[%emt 0:01:31]} 29. Nxb5 {[%emt 0:00:00]} Rb8 {[%emt 0:00:34]} 30. Nd4 {[%emt 0:00:00]} Qe4 {[%emt 0:00:54]} 31. b5 {[%emt 0:00:00]} h5 {[%emt 0:01:31]} 32. c6 {[%emt 0:00:00][%cal Bc5c6,Bc6c7][%mdl 32]} g4 {[%emt 0:00:00]} 33. Qd6 {[%emt 0:00:00]} Qb1+ {[%emt 0:00:26]} 34. Kh2 {[%emt 0:00:00] Threatens to win with c7. Active counter play!} gxh3 {[%emt 0:00:28]} 35. Qg3+ {[%emt 0:00:00]} Kh7 {[%emt 0:00:07]} 36. Qxh3 {[%emt 0:00:00]} (36. c7 $142 hxg2 37. Qxg2 (37. cxb8=B $2 Qh1#)) 36... Rh8 {[%emt 0:00:50]} 37. c7 {[%emt 0:00:00]} (37. Qxh5+ Kg7 38. g4 Rxh5+ $19) 37... Rbc8 {[%emt 0:00:33]} 38. Rc6 {[%emt 0:06:00]} (38. Qxh5+ $2 Kg7 $19) (38. Nf5 $142 Qe4 39. Rh6+ Kg8 40. Rxh8+ Kxh8 41. Qxh5+ Kg8 42. Qg5+ Kf8 43. Qg7+ Ke8 44. Qg8+ Kd7 45. Qxf7+ Qe7 46. Qxe7#) 38... Qe4 {[%emt 0:00:33]} 39. b6 {[%emt 0:00:00] Weighted Error Value: White=0.05 (flawless) /Black=0.56} ({Inferior is} 39. Qxh5+ Kg7 $11) (39. Nf5 $142 Qg4 40. Rh6+ Kg8 41. b6 Qxh3+ 42. Kxh3 Rxh6 43. b7 Rxc7 44. b8=Q+ (44. b8=B $2 {loses.} Rf6 $19) 44... Kh7 45. Qxc7) 1-0

[Event "Bangabandhu Premier Div League 2022"]
[Site "Dhaka"]
[Date "2022.12.07"]
[Round "8.2"]
[White "Koustav Chatterjee"]
[Black "Muthaiah AL"]
[Result "0-1"]
[ECO "A17"]
[WhiteElo "2496"]
[BlackElo "2454"]
[Annotator "TA"]
[PlyCount "80"]
[EventDate "2022.11.30"]
[EventType "team-tourn"]
[EventCountry "BAN"]
[SourceTitle "playchess.com"]
[Source "ChessBase"]
[SourceQuality "1"]
[TimeControl "40/5400+30:1800+30"]

{[%evp 9,80,0,11,0,0,0,-10,0,0,0,0,-8,5,-107,-110,-130,-42,-38,-31,-38,-37,-31,-11,-19,0,-16,0,0,0,-70,-82,-77,-62,-71,-70,-62,0,0,0,-23,0,-219,-231,-206,-215,-218,-228,-204,-218,-229,-190,-237,-216,-237,-235,-238,-240,-251,-230,-243,-206,-331,-359,-329,-321,-659,-614,-686,-668,-657,-603,-539,0]} 1. Nf3 {[%emt 0:05:48]} d5 {[%emt 0:01:09]} 2. e3 {[%emt 0:01:37]} Nf6 {[%emt 0:01:47]} 3. c4 {[%emt 0:00:05]} e6 {[%emt 0:01:08]} 4. Nc3 {[%emt 0:00:11]} c5 {[%emt 0:02:11]} 5. cxd5 {[%emt 0:03:17]} Nxd5 {[%emt 0:01:55]} 6. Qc2 {[%emt 0:12:59] A17: English Opening: 1...Nf6 with ...Bb4.} Nc6 {[%emt 0:03:35]} 7. b3 {[%emt 0:01:02]} Be7 {[%emt 0:03:41]} 8. Bb2 {[%emt 0:00:07] The position is equal.} O-O {[%emt 0:00:46]} 9. h4 {[%emt 0:15:30]} f5 {[%emt 0:04:26]} 10. Be2 {[%emt 0:07:20]} b6 {[%emt 0:10:32] [#]} 11. g4 $146 {[%emt 0:18:56]} (11. Rd1 $11) ({Predecessor:} 11. Nxd5 exd5 12. h5 Bf6 13. h6 g6 14. O-O d4 15. exd4 Nxd4 16. Nxd4 Bxd4 17. Bf3 {1-0 (26) Andreikin,D (2702)-Steinbuerg,K (2427) Chess.com INT 2018}) 11... Ndb4 $17 {[%emt 0:07:27]} (11... fxg4 $6 12. Ng5 Rf5 13. Qe4 Nxc3 14. Bxc3 $15) 12. Qb1 {[%emt 0:00:07]} Ba6 {[%emt 0:00:12] Black has more active pieces. The white rooks are badly placed.} (12... fxg4 13. Ng5 Rf5 14. Bc4 Bxg5 15. hxg5 (15. Qxf5 Bf6 $11) 15... Qxg5 16. Ne4 $11) (12... Bb7 $1 $17 {[%cal Oc6d4] White must now prevent ...Nd4!} 13. a3 Nd4 $1 14. exd4 cxd4 15. axb4 dxc3 16. Bxc3 (16. dxc3 $2 fxg4 17. Qd3 Qxd3 $19) 16... fxg4) 13. Bxa6 $15 {[%emt 0:04:03]} Nxa6 {[%emt 0:00:09]} 14. gxf5 {[%emt 0:03:03]} exf5 {[%emt 0:06:38]} (14... Nab4 {is interesting.} 15. Ke2 Rxf5 16. a3 Qd7) 15. Ne2 {[%emt 0:02:14]} Nab4 {[%emt 0:12:00]} (15... Qd5 $5 {[%cal Rd5f3]} 16. Rh3 Nab4 $15) 16. Nf4 {[%emt 0:01:42] Inhibits Nd3+. Hoping for Rg1.} (16. Rg1 {with more complications.} Rf7 17. Nf4 Qd6 18. Ke2) 16... Bf6 {[%emt 0:02:05]} (16... Qd6 {seems wilder.} 17. Rg1 Rf7 18. Ke2 Nd5) 17. Rg1 {[%emt 0:05:56] a3 is the strong threat.} Qd7 {[%emt 0:04:28]} (17... Bxh4 $2 18. Bxg7 Ne7 19. Bxf8+ Ng6 20. Nxg6 Nd3+ 21. Qxd3 $3 {[%mdl 512]} Qxd3 22. Nf4+ Kxf8 23. Nxd3 $18) 18. a3 {[%emt 0:04:33]} Nd5 {[%emt 0:35:21]} 19. Nh5 {[%emt 0:00:05]} ({White should try} 19. Bxf6 $11 Rxf6 20. Qd3) 19... Bxb2 {[%emt 0:00:00]} 20. Qxb2 {[%emt 0:00:27][%cal Rg1g7]} g6 {[%emt 0:00:00]} 21. O-O-O {[%emt 0:00:45]} Rae8 {[%emt 0:00:00]} 22. d4 {[%emt 0:03:56]} cxd4 {[%emt 0:00:00]} ({Better is} 22... Qe7 $1 $15) 23. Nxd4 $11 {[%emt 0:00:05]} Ne5 {[%emt 0:00:00] Threatens to win with ...Rc8+.} 24. Ne2 {[%emt 0:01:48]} Qb5 $36 {[%emt 0:00:00][%cal Of5f4][%mdl 2048] Strongly threatening ...f4! Black is more active. Dancing on a razor blade.} 25. Kb1 $2 {[%emt 0:00:35] [#]} (25. Nhf4 $1 $11) 25... Qxe2 $3 $19 {[%emt 0:00:00][%mdl 512]} 26. Rxd5 {[%emt 0:00:34]} (26. Nf6+ $2 Rxf6 27. Rxd5 Qxb2+ 28. Kxb2 f4 $19) 26... Qxh5 {[%emt 0:00:46]} 27. Rxe5 {[%emt 0:00:04]} Qxh4 {[%emt 0:00:13]} 28. Rxe8 {[%emt 0:01:10]} Rxe8 {[%emt 0:00:02][%mdl 4096] Endgame KQR-KQR} 29. Rc1 {[%emt 0:01:06]} Qe7 {[%emt 0:01:44] Inhibits Rc7.} 30. Ka2 {[%emt 0:00:07]} (30. Rc4 $142) 30... Rd8 {[%emt 0:00:38][%cal Be8d8,Bd8d7,Bd7d1,Bd1d3,Bd3e3][%mdl 32]} 31. a4 {[%emt 0:00:36]} h5 {[%emt 0:01:06]} 32. Rc6 {[%emt 0:00:24]} Kh7 {[%emt 0:00:18]} 33. f4 {[%emt 0:00:58]} Rd7 {[%emt 0:00:52]} (33... Qxe3 34. Rc7+) 34. Qg2 {[%emt 0:03:15]} Qg7 {[%emt 0:00:44] aiming for ...Rd1.} (34... Qxe3 {gets mated.} 35. Qxg6+ (35. Rxg6 Rd2+) 35... Kh8 36. Rc8+) 35. Rc2 {[%emt 0:00:58]} (35. Qc2 $142) 35... Rd1 {[%emt 0:00:29][%csl Gd1][%cal Rg7a1]} 36. Rb2 {[%emt 0:00:08]} Qe7 {[%emt 0:01:20]} 37. Qg3 {[%emt 0:01:45] Inhibits Re1.} (37. Qe2 Rc1 38. Qd2) 37... Rd3 {[%emt 0:00:23] Black is clearly winning.} 38. Rc2 {[%emt 0:01:11]} Rxe3 {[%emt 0:00:32]} (38... Qxe3 39. Rc7+ Kh8 40. Qg5 (40. Qxg6 Qd2+ 41. Ka3 Rxb3+ 42. Kxb3 Qd3+ 43. Rc3 Qd1+ 44. Ka3 Qa1+ 45. Kb4 Qb1+ 46. Kc4 Qa2+ 47. Kb5 Qb2+ 48. Ka6 Qxc3 $11) 40... Qe2+ 41. Ka3 $18) 39. Qg2 {[%emt 0:00:14]} Qf7 {[%emt 0:00:28]} 40. Rc4 {[%emt 0:00:35]} Qe7 $2 {[%emt 0:00:46][%mdl 32768] Weighted Error Value: White=0.35/Black=0.13 (very precise) . Loss on time!?} (40... h4 $19 41. Qb2 Qg7) 0-1